bitfinex-derivatives/quotes_SOLF0:USTF0_20250206
["timestamp","ask_amount","ask_price","bid_price","bid_amount"]
[1738813792834,0.03519838,200.61,200.57,5.01949442]
[1738813798146,0.03519838,200.61,200.57,0.03419442]
[1738813798444,0.03519838,200.61,200.57,5.01959442]
[1738813800241,0.03519838,200.61,200.57,0.03419442]
[1738813801346,0.03519838,200.61,200.59,4.985]
[1738813802046,0.03519838,200.61,200.58,4.9852]
[1738813803147,0.03519838,200.61,200.6,4.9847]
[1738813810452,4.9832,200.67,200.6,8.56766753]
[1738813810648,4.9832,200.67,200.62,13.55176753]
[1738813811548,4.9832,200.67,200.62,13.58992873]
[1738813811754,5.01512434,200.67,200.62,13.58992873]
[1738813814066,5.01512434,200.67,200.62,5.0222612]
[1738813818469,5.01512434,200.67,200.62,0.0381612]
[1738813822170,8.56766753,200.66,200.62,0.0381612]
[1738813823872,4.9838,200.64,200.62,0.0381612]
[1738813827466,8.56766753,200.66,200.62,0.0381612]
[1738813827671,4.9835,200.65,200.62,0.0381612]
[1738813831174,8.56766753,200.64,200.62,0.0381612]
[1738813831473,4.984,200.63,200.62,0.0381612]
[1738813835275,4.9852,200.59,200.56,6.85493006]
[1738813835572,0.03192434,200.67,200.56,6.85493006]
[1738813835573,8.56766753,200.58,200.56,6.85493006]
[1738813836876,4.9855,200.57,200.56,6.85493006]
[1738813837169,4.9855,200.57,200.55,0.0336375]
[1738813837375,8.56766753,200.56,200.55,0.0336375]
[1738813840685,13.55336753,200.56,200.55,0.0336375]
[1738813846886,4.9857,200.56,200.55,0.0336375]
[1738813847081,4.9854,200.58,200.55,0.0336375]
[1738813847386,8.56766753,200.58,200.55,0.0336375]
[1738813847579,4.9857,200.57,200.55,0.0336375]
[1738813847785,8.56766753,200.58,200.55,0.0336375]
[1738813848590,5.02271214,200.59,200.55,0.0336375]
[1738813850088,4.9853,200.58,200.55,0.0336375]
[1738813854185,0.03751214,200.59,200.55,0.0336375]
[1738813858394,5.02251214,200.59,200.55,0.0336375]
[1738813859395,0.03751214,200.59,200.55,0.0336375]
[1738813859596,8.56766753,200.58,200.55,0.0336375]
[1738813860096,4.9857,200.57,200.55,0.0336375]
[1738813860395,8.56766753,200.58,200.55,0.0336375]
[1738813860696,13.55336753,200.56,200.55,0.0336375]
[1738813863497,8.56766753,200.56,200.47,27.46145511]
[1738813863695,8.56766753,200.51,200.44,8.56766753]
[1738813864803,0.03592018,200.5,200.45,0.03614141]
[1738813865299,4.9875,200.49,200.45,0.03614141]
[1738813866002,8.56766753,200.49,200.45,0.03614141]
[1738813866503,13.55536753,200.49,200.45,0.03614141]
[1738813867103,8.56766753,200.49,200.45,0.03614141]
[1738813867303,4.9878,200.48,200.45,0.03614141]
[1738813869203,4.9882,200.46,200.45,0.03614141]
[1738813872506,8.56766753,200.47,200.37,6.85493006]
[1738813872706,8.56766753,200.42,200.37,6.85493006]
[1738813873314,4.99,200.39,200.37,6.85493006]
[1738813873606,4.99,200.39,200.36,0.03752562]
[1738813874311,0.03230684,200.4,200.36,0.03752562]
[1738813874512,0.03230684,200.4,200.36,8.60519315]
[1738813876314,5.02200684,200.4,200.36,0.03752562]
[1738813876515,0.03230684,200.4,200.36,0.03752562]
[1738813876711,0.03230684,200.4,200.36,8.60519315]
[1738813877416,0.03230684,200.4,200.37,4.9904]
[1738813877618,0.03230684,200.4,200.38,8.56766753]
[1738813878011,0.03230684,200.4,200.38,13.55786753]
[1738813878618,4.9884,200.46,200.39,4.99]
[1738813878918,8.56766753,200.48,200.41,8.56766753]
[1738813879918,0.0383066,200.47,200.42,0.03673362]
[1738813881419,0.0383066,200.47,200.42,1.60883362]
[1738813883619,4.9883,200.46,200.42,1.60883362]
[1738813884013,8.56766753,200.44,200.42,0.03673362]
[1738813885522,13.55646753,200.44,200.42,0.03673362]
[1738813885818,8.56766753,200.46,200.42,0.03673362]
[1738813886323,0.0383066,200.47,200.42,0.03673362]
[1738813887019,0.0383066,200.47,200.42,5.02593362]
[1738813887619,0.0383066,200.47,200.44,4.9887]
[1738813887819,0.0383066,200.47,200.44,8.56766753]
[1738813888015,0.0383066,200.47,200.46,8.56766753]
[1738813888221,0.0383066,200.47,200.46,13.55586753]
[1738813888817,8.56766753,200.54,200.46,13.55586753]
[1738813889019,8.56766753,200.54,200.46,8.56766753]
[1738813889323,4.9866,200.53,200.47,4.988]
[1738813889719,8.56766753,200.54,200.48,4.9875]
[1738813889918,0.03442802,200.52,200.48,13.59060757]
[1738813890415,0.03442802,200.52,200.48,0.03544004]
[1738813891719,8.60209555,200.52,200.48,0.03544004]
[1738813892419,4.9873,200.5,200.48,0.03544004]
[1738813892615,13.55496753,200.5,200.48,0.03544004]
[1738813893117,8.60209555,200.52,200.48,0.03544004]
[1738813895420,0.03442802,200.52,200.48,0.03544004]
[1738813896027,8.56766753,200.6,200.51,8.56766753]
[1738813896223,8.56766753,200.58,200.51,8.56766753]
[1738813897119,0.03504659,200.57,200.52,0.0317566]
[1738813897320,4.9858,200.56,200.52,0.0317566]
[1738813901018,4.986,200.55,200.52,0.0317566]
[1738813904625,4.9865,200.53,200.52,0.0317566]
[1738813908038,0.03504659,200.57,200.52,0.0317566]
[1738813909730,5.02074659,200.57,200.52,0.0317566]
[1738813910832,0.03504659,200.57,200.52,0.0317566]
[1738813911033,4.9858,200.56,200.52,0.0317566]
[1738813913131,0.03504659,200.57,200.52,0.0317566]
[1738813913336,0.03504659,200.57,200.52,5.0183566]
[1738813915136,0.03504659,200.57,200.53,4.9865]
[1738813915335,0.03504659,200.57,200.53,13.55416753]
[1738813916429,0.03504659,200.57,200.55,8.56766753]
[1738813918535,0.03504659,200.57,200.52,0.0317566]
[1738813919139,4.986,200.56,200.52,0.0317566]
[1738813919439,8.56766753,200.54,200.52,0.0317566]
[1738813920842,4.9865,200.53,200.52,0.0317566]
[1738813922341,5.02074659,200.57,200.52,0.0317566]
[1738813922643,0.03504659,200.57,200.53,8.56766753]
[1738813922836,0.03504659,200.57,200.53,13.55396753]
[1738813923032,0.03504659,200.57,200.55,8.56766753]
[1738813924738,0.03504659,200.57,200.55,4.9859]
[1738813925442,0.03504659,200.57,200.53,14.87686928]
[1738813925739,0.03504659,200.57,200.54,4.9862]
[1738813926744,0.03504659,200.57,200.55,4.986]
[1738813928141,0.03504659,200.57,200.53,14.87686928]
[1738813928341,0.03504659,200.57,200.53,1.461]
[1738813928537,0.03504659,200.57,200.52,0.0317566]
[1738813928837,4.9865,200.53,200.52,0.0317566]
[1738813934241,0.03504659,200.57,200.52,0.0317566]
[1738813935548,4.9858,200.56,200.52,0.0317566]
[1738813936343,5.02054659,200.57,200.52,0.0317566]
[1738813936848,0.03504659,200.57,200.52,0.0317566]
[1738813937046,4.9858,200.56,200.52,0.0317566]
[1738813937650,0.03504659,200.57,200.52,5.0183566]
[1738813938651,5.02054659,200.57,200.52,5.0183566]
[1738813938847,0.03504659,200.57,200.52,0.0317566]
[1738813939853,4.9858,200.56,200.52,0.0317566]
[1738813941454,0.03504659,200.57,200.52,0.0317566]
[1738813941653,4.9862,200.54,200.52,0.0317566]
[1738813942053,0.03504659,200.57,200.52,0.0317566]
[1738813943053,4.9858,200.56,200.52,0.0317566]
[1738813944348,0.03504659,200.57,200.52,0.0317566]
[1738813945052,0.03504659,200.57,200.52,5.0184566]
[1738813945248,0.03504659,200.57,200.52,0.0317566]
[1738813945456,0.03504659,200.57,200.53,14.99356928]
[1738813945655,0.03504659,200.57,200.54,1.4694]
[1738813946155,0.03504659,200.57,200.56,4.9857]
[1738813946654,0.03504659,200.57,200.56,13.57008682]
[1738813947352,8.58438682,200.68,200.59,4.9849]
[1738813947551,8.58438682,200.68,200.6,8.58438682]
[1738813947748,8.58438682,200.68,200.62,8.58438682]
[1738813948252,8.58438682,200.72,200.65,8.58438682]
[1738813948449,245.17299845,200.73,200.65,8.58438682]
[1738813948750,0.03809755,200.71,200.66,0.03344198]
[1738813950159,0.03809755,200.71,200.66,5.01664198]
[1738813950358,0.03809755,200.71,200.66,0.03344198]
[1738813952163,4.9828,200.68,200.66,0.03344198]
[1738813952469,0.03809755,200.71,200.66,0.03344198]
[1738813953768,5.02029755,200.71,200.66,0.03344198]
[1738813953962,0.03809755,200.71,200.66,0.03344198]
[1738813954868,0.03809755,200.71,200.66,5.01664198]
[1738813955370,0.03809755,200.71,200.66,13.43615109]
[1738813956773,0.03809755,200.71,200.69,4.9823]
[1738813957374,0.03809755,200.71,200.67,4.9828]
[1738813957874,0.03809755,200.71,200.68,4.9825]
[1738813960675,0.03809755,200.71,200.66,13.43615109]
[1738813960876,0.03809755,200.71,200.66,0.03344198]
[1738813961276,4.9823,200.7,200.66,0.03344198]
[1738813964775,4.983,200.67,200.66,0.03344198]
[1738813965878,18.38570911,200.67,200.66,4.198e-05]
[1738813970481,18.38570911,200.67,200.55,1.5945]
[1738813970482,13.40270911,200.67,200.55,1.5945]
[1738813970683,4.9845,200.61,200.55,1.5945]
[1738813971073,4.9849,200.6,200.55,1.5945]
[1738813971586,5.02064991,200.6,200.55,1.63213003]
[1738813971777,4.9851,200.59,200.55,1.63213003]
[1738813972481,0.03574991,200.6,200.55,0.03763003]
[1738813973385,4.9856,200.57,200.55,0.03763003]
[1738813973880,0.03574991,200.6,200.58,4.9852]
[1738813974179,0.03574991,200.6,200.55,0.03763003]
[1738813974381,0.03574991,200.6,200.56,4.9856]
[1738813974584,0.03574991,200.6,200.55,1.52843003]
[1738813975881,0.03574991,200.6,200.55,6.51423003]
[1738813979789,0.03574991,200.6,200.56,4.9857]
[1738813985186,4.985,200.59,200.55,1.52843003]
[1738813985489,0.03574991,200.6,200.55,0.03763003]
[1738813987389,5.02064991,200.6,200.55,0.03763003]
[1738813989889,0.03574991,200.6,200.55,0.03763003]
[1738813990085,0.03574991,200.6,200.57,13.40270911]
[1738813991894,0.03574991,200.6,200.59,4.985]
[1738813993194,4.983,200.67,200.61,4.9844]
[1738813994290,0.03838225,200.66,200.62,0.03687267]
[1738813996596,0.03838225,200.66,200.62,8.61800884]
[1738813998199,0.03838225,200.66,200.64,13.56483617]
[1738813999099,0.03838225,200.66,200.64,8.58113617]
[1738813999299,0.03838225,200.66,200.62,13.60220884]
[1738814004205,4.9838,200.64,200.62,0.03687267]
[1738814007706,5.02188225,200.66,200.62,0.03687267]
[1738814011611,4.9836,200.65,200.62,0.03687267]
[1738814011806,0.03838225,200.66,200.62,0.03687267]
[1738814012812,4.9839,200.64,200.62,0.03687267]
[1738814014415,4.9835,200.65,200.62,0.03687267]
[1738814015413,5.02168225,200.66,200.62,8.61800884]
[1738814015614,0.03838225,200.66,200.64,8.58113617]
[1738814024822,0.03838225,200.66,200.62,13.60220884]
[1738814025427,0.03838225,200.66,200.62,8.61800884]
[1738814025629,0.03838225,200.66,200.64,4.9837]
[1738814027128,0.03838225,200.66,200.63,4.984]
[1738814027329,0.03838225,200.66,200.62,8.61800884]
[1738814028730,5.02168225,200.66,200.62,8.61800884]
[1738814029727,0.03838225,200.66,200.62,8.61800884]
[1738814030731,0.03838225,200.66,200.62,13.60220884]
[1738814040437,4.9838,200.64,200.62,0.03687267]
[1738814040838,0.03838225,200.66,200.62,0.03687267]
[1738814041038,4.9835,200.65,200.62,0.03687267]
[1738814042032,0.03838225,200.66,200.62,8.61800884]
[1738814043041,0.03838225,200.66,200.64,4.9837]
[1738814043237,0.03838225,200.66,200.64,13.56483617]
[1738814044337,0.03838225,200.66,200.65,4.9835]
[1738814046835,0.03838225,200.66,200.64,8.58113617]
[1738814047041,0.03838225,200.66,200.63,4.9838]
[1738814047340,0.03838225,200.66,200.62,8.61800884]
[1738814048332,0.03838225,200.66,200.62,13.60220884]
[1738814049141,0.03838225,200.66,200.63,4.984]
[1738814050340,0.03838225,200.66,200.62,8.61800884]
[1738814050543,0.03838225,200.66,200.62,13.60220884]
[1738814051043,0.03838225,200.66,200.62,0.03687267]
[1738814051641,5.02168225,200.66,200.62,0.03687267]
[1738814051838,8.58113617,200.63,200.62,0.03687267]
[1738814052034,0.03838225,200.66,200.62,0.03687267]
[1738814052342,4.9816,200.73,200.65,8.58113617]
[1738814052543,4.9816,200.73,200.67,8.58113617]
[1738814053545,0.03811259,200.72,200.68,0.031732]
[1738814055242,13.56343617,200.7,200.68,0.031732]
[1738814057544,4.9823,200.7,200.68,0.031732]
[1738814060643,8.61924876,200.72,200.68,0.031732]
[1738814060845,4.982,200.71,200.68,0.031732]
[1738814064946,4.9823,200.7,200.68,0.031732]
[1738814065152,8.61924876,200.72,200.68,0.031732]
[1738814065653,4.9824,200.7,200.68,0.031732]
[1738814065851,8.61924876,200.72,200.68,0.031732]
[1738814066047,8.58113617,200.7,200.68,0.031732]
[1738814066349,4.9825,200.69,200.68,0.031732]
[1738814069154,4.984,200.63,200.57,42.53509128]
[1738814069452,8.58113617,200.7,200.57,42.53509128]
[1738814069453,8.58113617,200.64,200.57,37.54979128]
[1738814070355,0.03772979,200.63,200.58,0.03150423]
[1738814070754,4.9843,200.62,200.58,0.03150423]
[1738814071053,13.56543617,200.62,200.58,0.03150423]
[1738814073061,4.9843,200.62,200.58,0.03150423]
[1738814074658,0.03772979,200.63,200.58,0.03150423]
[1738814074962,0.03772979,200.63,200.61,8.58113617]
[1738814075655,0.03772979,200.63,200.61,13.56543617]
[1738814076760,0.03772979,200.63,200.58,5.01660423]
[1738814078562,4.9846,200.61,200.58,0.03150423]
[1738814080859,8.58113617,200.62,200.58,0.03150423]
[1738814081162,13.56553617,200.62,200.58,0.03150423]
[1738814082064,4.9846,200.61,200.58,0.03150423]
[1738814084766,8.58113617,200.62,200.58,0.03150423]
[1738814085668,8.58113617,200.6,200.58,0.03150423]
[1738814085869,13.56603617,200.6,200.58,0.03150423]
[1738814086074,8.58113617,200.6,200.58,0.03150423]
[1738814086471,4.985,200.59,200.58,0.03150423]
[1738814089770,13.56563617,200.62,200.58,0.03150423]
[1738814090272,8.58113617,200.62,200.58,0.03150423]
[1738814091971,4.9845,200.61,200.58,0.03150423]
[1738814092167,8.58113617,200.62,200.58,0.03150423]
[1738814092366,4.9849,200.6,200.58,0.03150423]
[1738814092769,8.58113617,200.62,200.58,0.03150423]
[1738814094667,0.03772979,200.63,200.58,0.03150423]
[1738814095374,0.03772979,200.63,200.58,5.01650423]
[1738814095972,0.03772979,200.63,200.59,4.9849]
[1738814096773,5.02172979,200.63,200.58,5.01670423]
[1738814096974,5.02172979,200.63,200.58,0.03150423]
[1738814098771,5.02172979,200.63,200.58,5.01670423]
[1738814098971,4.9845,200.61,200.58,0.03150423]
[1738814099174,0.03772979,200.63,200.58,0.03150423]
[1738814099376,4.9843,200.62,200.58,0.03150423]
[1738814099873,0.03772979,200.63,200.58,0.03150423]
[1738814100780,4.9845,200.61,200.58,0.03150423]
[1738814100972,0.03772979,200.63,200.58,0.03150423]
[1738814101378,5.02192979,200.63,200.58,0.03150423]
[1738814102477,4.9842,200.62,200.58,0.03150423]
[1738814106882,0.03772979,200.63,200.58,0.03150423]
[1738814107082,4.9845,200.61,200.58,0.03150423]
[1738814109181,4.9848,200.6,200.58,0.03150423]
[1738814109684,8.58113617,200.62,200.58,0.03150423]
[1738814110081,4.985,200.59,200.58,0.03150423]
[1738814112786,4.9847,200.61,200.58,0.03150423]
[1738814113286,8.58113617,200.62,200.58,0.03150423]
[1738814113487,13.56543617,200.62,200.58,0.03150423]
[1738814116789,0.03772979,200.63,200.59,4.985]
[1738814116993,0.03772979,200.63,200.58,0.03150423]
[1738814117890,5.02172979,200.63,200.58,5.01670423]
[1738814126106,4.9844,200.62,200.58,0.03150423]
[1738814127196,0.03772979,200.63,200.58,0.03150423]
[1738814127501,4.9847,200.61,200.58,0.03150423]
[1738814127996,8.58113617,200.6,200.58,0.03150423]
[1738814129599,4.9847,200.61,200.58,0.03150423]
[1738814131005,4.9843,200.62,200.58,0.03150423]
[1738814131304,0.03772979,200.63,200.58,0.03150423]
[1738814133005,5.02172979,200.63,200.58,5.01670423]
[1738814133208,0.03772979,200.63,200.58,5.01670423]
[1738814133404,4.9843,200.62,200.58,5.01670423]
[1738814133707,13.56543617,200.62,200.58,0.03150423]
[1738814134609,4.9845,200.61,200.58,0.03150423]
[1738814135610,4.985,200.59,200.58,0.03150423]
[1738814138110,8.58113617,200.6,200.58,0.03150423]
[1738814139910,13.56583617,200.6,200.58,0.03150423]
[1738814141711,8.58113617,200.6,200.58,0.03150423]
[1738814143407,4.985,200.59,200.58,0.03150423]
[1738814144007,8.58113617,200.6,200.58,0.03150423]
[1738814144715,13.56583617,200.6,200.58,0.03150423]
[1738814145915,8.58113617,200.6,200.58,0.03150423]
[1738814149513,4.985,200.59,200.58,0.03150423]
[1738814154518,8.58113617,200.6,200.5,6.85493006]
[1738814154818,8.58113617,200.54,200.5,6.85493006]
[1738814155119,8.58113617,200.54,200.49,27.46145511]
[1738814155617,8.61323475,200.54,200.49,27.49719544]
[1738814155918,13.59953475,200.54,200.49,27.49719544]
[1738814156118,0.03209858,200.54,200.49,27.49719544]
[1738814156616,0.03209858,200.54,200.49,32.48469544]
[1738814157319,8.61323475,200.54,200.49,27.49719544]
[1738814157522,13.59953475,200.54,200.49,27.49719544]
[1738814159515,13.59953475,200.54,200.49,0.03574033]
[1738814161727,4.9865,200.53,200.49,0.03574033]
[1738814161923,8.58113617,200.52,200.49,0.03574033]
[1738814162226,13.56793617,200.52,200.49,0.03574033]
[1738814173726,8.58113617,200.52,200.49,0.03574033]
[1738814174022,13.59963475,200.54,200.49,5.02314033]
[1738814174824,0.03209858,200.54,200.49,8.6168765]
[1738814175226,0.03209858,200.54,200.51,8.58113617]
[1738814176633,0.03209858,200.54,200.52,4.9867]
[1738814177129,0.03209858,200.54,200.51,8.58113617]
[1738814177330,0.03209858,200.54,200.52,4.9867]
[1738814177632,0.03209858,200.54,200.51,8.58113617]
[1738814178030,0.03209858,200.54,200.52,4.9867]
[1738814178231,0.03209858,200.54,200.51,8.58113617]
[1738814179730,0.03209858,200.54,200.52,4.9867]
[1738814180731,0.03209858,200.54,200.51,8.58113617]
[1738814180935,0.03209858,200.54,200.53,4.9865]
[1738814181833,8.58113617,200.58,200.53,4.9865]
[1738814183132,8.61860271,200.58,200.53,5.02154402]
[1738814183732,8.61860271,200.58,200.53,0.03504402]
[1738814183933,0.03746654,200.58,200.55,4.9858]
[1738814184134,0.03746654,200.58,200.54,1.4739]
[1738814184336,0.03746654,200.58,200.57,4.9855]
[1738814185835,13.56543617,200.62,200.57,4.9855]
[1738814187031,13.59910711,200.62,200.57,5.01989368]
[1738814187536,0.03367094,200.62,200.59,4.985]
[1738814188138,0.03367094,200.62,200.59,8.58113617]
[1738814188334,8.58113617,200.68,200.61,8.58113617]
[1738814188535,8.58113617,200.7,200.63,8.58113617]
[1738814188736,13.56343617,200.7,200.65,4.9835]
[1738814189039,13.56343617,200.7,200.63,8.58113617]
[1738814189340,8.58113617,200.68,200.64,0.03463581]
[1738814190139,13.56393617,200.68,200.64,0.03463581]
[1738814190339,8.58113617,200.66,200.64,0.03463581]
[1738814192230,8.58113617,200.68,200.64,0.03463581]
[1738814194742,8.58113617,200.68,200.64,5.01833581]
[1738814194943,8.58113617,200.7,200.64,0.03463581]
[1738814195545,8.58113617,200.7,200.65,4.9833]
[1738814198947,13.56343617,200.7,200.65,4.9833]
[1738814200343,8.58113617,200.7,200.65,4.9833]
[1738814200547,191.2645,200.79,200.65,8.58113617]
[1738814200548,8.58113617,200.72,200.65,8.58113617]
[1738814200748,8.58113617,200.74,200.67,8.58113617]
[1738814201847,8.58113617,200.74,200.69,4.9823]
[1738814203456,8.58113617,200.74,200.66,0.03689487]
[1738814203753,8.58113617,200.72,200.67,4.9828]
[1738814204153,8.58113617,200.72,200.67,5.01499325]
[1738814206656,13.56293617,200.72,200.67,5.01499325]
[1738814209157,8.58113617,200.72,200.67,0.03219325]
[1738814209357,8.58113617,200.72,200.69,4.9825]
[1738814212958,8.58113617,200.72,200.67,0.03219325]
[1738814213157,4.9821,200.71,200.67,0.03219325]
[1738814214161,13.56293617,200.72,200.67,5.01519325]
[1738814219264,8.58113617,200.72,200.69,4.9825]
[1738814219466,13.56263617,200.74,200.69,4.9825]
[1738814221864,4.9816,200.73,200.67,5.01499325]
[1738814222261,4.9816,200.73,200.67,0.03219325]
[1738814222456,4.9816,200.73,200.68,4.9827]
[1738814223063,8.58113617,200.74,200.67,0.03219325]
[1738814223265,13.56243617,200.74,200.69,4.9824]
[1738814229772,4.9818,200.73,200.67,5.01509325]
[1738814229973,8.58113617,200.74,200.67,5.01509325]
[1738814230267,8.58113617,200.72,200.67,5.01509325]
[1738814230576,4.9825,200.69,200.67,0.03219325]
[1738814230764,8.58113617,200.68,200.67,0.03219325]
[1738814231571,13.56393617,200.68,200.67,0.03219325]
[1738814232472,8.58113617,200.68,200.67,0.03219325]
[1738814236076,4.9825,200.69,200.67,0.03219325]
[1738814237876,13.56393617,200.68,200.67,0.03219325]
[1738814239178,13.56393617,200.68,200.6,6.85493006]
[1738814239179,8.58113617,200.68,200.6,6.85493006]
[1738814239474,8.58113617,200.63,200.6,6.85493006]
[1738814240387,5.01599326,200.64,200.6,6.85493006]
[1738814240776,4.9838,200.64,200.59,11.83983006]
[1738814240980,5.01579202,200.64,200.6,0.03822028]
[1738814241483,8.58113617,200.63,200.6,0.03822028]
[1738814241678,8.58113617,200.61,200.6,0.03822028]
[1738814241877,13.56563617,200.61,200.6,0.03822028]
[1738814243881,0.03199202,200.64,200.6,0.03822028]
[1738814250887,0.03199202,200.64,200.61,8.58113617]
[1738814251188,0.03199202,200.64,200.63,8.58113617]
[1738814252191,0.03199202,200.64,200.63,4.984]
[1738814266805,0.03199202,200.64,200.63,13.56513617]
[1738814273719,8.58113617,200.73,200.7,4.9823]
[1738814274118,8.58113617,200.73,200.66,8.58113617]
[1738814274819,8.58113617,200.73,200.67,0.03707]
[1738814275820,8.58113617,200.73,200.69,4.9825]
[1738814276220,8.58113617,200.73,200.67,0.03707]
[1738814276522,4.9818,200.72,200.67,5.01987]
[1738814277523,8.58113617,200.71,200.67,5.01987]
[1738814283922,4.9828,200.68,200.67,0.03707]
[1738814288628,8.58113617,200.69,200.67,0.03707]
[1738814294333,13.56363617,200.69,200.67,0.03707]
[1738814295032,4.9828,200.68,200.67,0.03707]
[1738814298534,13.56363617,200.69,200.67,0.03707]
[1738814302543,13.56333617,200.71,200.67,0.03707]
[1738814303142,8.58113617,200.71,200.67,0.03707]
[1738814303742,4.9823,200.7,200.67,0.03707]
[1738814312646,13.56313617,200.71,200.67,0.03707]
[1738814315746,8.58113617,200.71,200.67,0.03707]
[1738814316045,4.9818,200.72,200.68,4.9827]
[1738814316548,8.58113617,200.75,200.68,8.58113617]
[1738814317048,8.58113617,200.75,200.72,4.9818]
[1738814319950,13.56173617,200.77,200.72,4.9818]
[1738814320445,44.24558381,200.79,200.73,4.9813]
[1738814320650,44.24558381,200.79,200.71,0.03433621]
[1738814320651,39.26528381,200.79,200.72,8.58113617]
[1738814321150,8.58113617,200.79,200.72,8.58113617]
[1738814321752,8.58113617,200.79,200.74,4.9812]
[1738814324955,8.58113617,200.79,200.75,4.9809]
[1738814332754,8.58113617,200.79,200.72,10.18083617]
[1738814332956,8.58113617,200.77,200.73,4.9813]
[1738814333257,8.58113617,200.75,200.7,1.5887]
[1738814333459,8.58113617,200.75,200.73,0.03810146]
[1738814333769,8.58113617,200.77,200.73,0.03810146]
[1738814338462,8.58113617,200.75,200.73,0.03810146]
[1738814340365,8.58113617,200.77,200.73,0.03810146]
[1738814341763,8.58113617,200.77,200.73,5.01950146]
[1738814342164,8.58113617,200.77,200.73,0.03810146]
[1738814342364,8.58113617,200.75,200.73,0.03810146]
[1738814348863,13.56213617,200.75,200.73,0.03810146]
[1738814349164,8.58113617,200.75,200.73,0.03810146]
[1738814349366,4.9813,200.74,200.73,0.03810146]
[1738814365372,8.58113617,200.75,200.73,0.03810146]
[1738814365568,13.56213617,200.75,200.73,0.03810146]
[1738814371279,8.58113617,200.75,200.73,0.03810146]
[1738814376786,8.58113617,200.79,200.73,0.03810146]
[1738814378785,8.58113617,200.79,200.77,4.9805]
[1738814384093,8.58113617,200.79,200.75,4.9808]
[1738814384293,8.58113617,200.77,200.75,4.9808]
[1738814384792,8.58113617,200.77,200.74,0.036325]
[1738814385792,8.58113617,200.77,200.74,5.017525]
[1738814387493,8.58113617,200.75,200.74,0.036325]
[1738814387890,8.58113617,200.75,200.69,27.46145511]
[1738814388090,8.58113617,200.7,200.69,27.46145511]
[1738814388292,8.58113617,200.7,200.68,27.46145511]
[1738814389890,13.56343617,200.7,200.68,27.46145511]
[1738814390093,8.58113617,200.7,200.68,27.46145511]
[1738814390293,8.58113617,200.7,200.67,54.85462305]
[1738814390494,8.58113617,200.68,200.67,54.85462305]
[1738814390995,8.58113617,200.68,200.67,0.03432517]
[1738814394200,13.56393617,200.68,200.67,0.03432517]
[1738814402800,8.58113617,200.68,200.67,0.03432517]
[1738814403398,8.58113617,200.7,200.68,4.9827]
[1738814403599,0.0325369,200.71,200.67,0.03432517]
[1738814404202,0.0325369,200.71,200.68,8.58113617]
[1738814404406,0.0325369,200.71,200.67,0.03432517]
[1738814404407,8.58113617,200.82,200.7,8.58113617]
[1738814404602,198.58113617,200.86,200.79,8.58113617]
[1738814404804,8.58113617,200.86,200.79,8.58113617]
[1738814405199,8.58113617,200.86,200.81,4.9795]
[1738814405404,8.58113617,200.82,200.75,8.58113617]
[1738814405708,8.58113617,200.82,200.81,0.03618732]
[1738814405909,8.58113617,200.82,200.73,8.58113617]
[1738814406207,8.58113617,200.86,200.79,0.03713778]
[1738814406408,8.58113617,200.88,200.82,4.9792]
[1738814407008,8.58113617,200.88,200.84,4.9786]
[1738814407205,55.17299845,200.89,200.83,8.58113617]
[1738814408410,8.58113617,200.92,200.85,8.58113617]
[1738814408599,8.58113617,200.96,200.89,8.58113617]
[1738814408801,8.58113617,200.98,200.91,8.58113617]
[1738814409001,8.58113617,201.0,200.94,4.9762]
[1738814410010,55.17299845,201.02,200.97,8.58113617]
[1738814410511,55.17299845,201.02,200.99,4.975]
[1738814411109,55.17299845,201.02,200.98,1.4565]
[1738814411312,63.75413462,201.02,200.98,1.4565]
[1738814412211,8.58113617,201.02,200.98,1.4565]
[1738814413513,8.58113617,201.04,200.98,1.4565]
[1738814414019,8.58113617,201.02,200.98,1.4565]
[1738814414517,8.58113617,201.0,200.98,0.03343008]
[1738814415015,8.58113617,201.0,200.9,1.5736]
[1738814415317,3.54,201.04,200.97,0.03344802]
[1738814415512,4.9762,200.95,200.9,1.5736]
[1738814415712,8.58113617,200.93,200.9,1.5736]
[1738814416117,8.58113617,200.93,200.87,4.9779]
[1738814416712,0.03681114,200.92,200.88,0.03426033]
[1738814417017,13.37534271,200.96,200.83,1.5763]
[1738814417316,0.03420015,200.92,200.88,0.03617405]
[1738814417716,13.37534271,200.99,200.85,13.37534271]
[1738814417918,0.03339023,200.92,200.88,0.03371176]
[1738814418715,0.03339023,200.92,200.9,4.9771]
[1738814420617,0.03339023,200.92,200.88,5.01131176]
[1738814421719,0.03339023,200.92,200.88,0.03371176]
[1738814424520,0.03339023,200.92,200.9,4.9773]
[1738814424920,0.03339023,200.92,200.88,0.03371176]
[1738814426923,0.03339023,200.92,200.89,4.9775]
[1738814427829,0.03339023,200.92,200.88,0.03371176]